bitfinex/quotes_BTCUSD_20250703
["timestamp","ask_amount","ask_price","bid_price","bid_amount"]
[1751505244384,0.03437106,109120.0,109110.0,1.26026277]
[1751505244601,0.33705411,109120.0,109110.0,1.26026277]
[1751505245676,0.03437106,109120.0,109110.0,1.56294582]
[1751505246088,0.03437106,109120.0,109110.0,1.56294553]
[1751505249365,0.03437106,109120.0,109110.0,1.26026248]
[1751505249582,0.03437106,109120.0,109110.0,1.56294553]
[1751505250582,0.03437106,109120.0,109110.0,1.56290553]
[1751505251837,0.03437106,109120.0,109110.0,1.26022248]
[1751505252044,0.03437106,109120.0,109110.0,1.07150248]
[1751505252254,0.33705411,109120.0,109110.0,1.2601821]
[1751505252889,0.63973716,109120.0,109110.0,0.50616584]
[1751505253120,0.63973716,109120.0,109110.0,0.39534815]
[1751505253592,0.64890071,109120.0,109110.0,0.10034815]
[1751505253802,0.96074747,109120.0,109110.0,0.10034815]
[1751505254018,0.95158376,109120.0,109110.0,0.10034815]
[1751505254231,0.95058376,109120.0,109110.0,0.09434815]
[1751505254444,0.95058376,109120.0,109110.0,0.02115269]
[1751505254666,0.64790071,109120.0,109110.0,0.0760287]
[1751505255097,0.63873716,109120.0,109110.0,0.0760287]
[1751505256033,0.36552547,109120.0,109110.0,0.11259605]
[1751505256472,0.36552547,109120.0,109110.0,0.05772004]
[1751505257137,0.36652547,109120.0,109110.0,0.05872004]
[1751505258214,0.36652547,109120.0,109110.0,0.05869004]
[1751505258426,0.36552547,109120.0,109110.0,0.05469004]
[1751505258863,0.36552547,109120.0,109110.0,0.05669004]
[1751505259290,0.35636192,109120.0,109110.0,0.05469004]
[1751505259696,0.36552538,109120.0,109110.0,0.05469004]
[1751505260314,0.36552538,109120.0,109110.0,0.01812269]
[1751505262720,0.36552538,109120.0,109110.0,0.01811041]
[1751505264154,0.36552538,109120.0,109110.0,0.01851041]
[1751505265974,0.35636192,109120.0,109110.0,0.01851041]
[1751505274702,0.03337106,109120.0,109110.0,0.01851041]
[1751505274914,0.35807945,109120.0,109110.0,0.01851041]
[1751505275144,0.35636192,109120.0,109110.0,0.01851041]
[1751505277392,0.54496192,109120.0,109110.0,0.01851041]
[1751505277819,0.8274548,109120.0,109110.0,0.01851041]
[1751505279969,0.8274548,109120.0,109110.0,0.01854383]
[1751505282636,0.8274548,109120.0,109110.0,0.07341984]
[1751505283104,0.22197106,109120.0,109110.0,0.07341984]
[1751505283329,0.8274548,109120.0,109110.0,0.07341984]
[1751505286199,0.8274548,109120.0,109110.0,0.07345614]
[1751505286526,0.22197106,109120.0,109110.0,0.07345614]
[1751505286681,0.8274548,109120.0,109110.0,0.07345614]
[1751505286897,0.83661843,109120.0,109110.0,0.07345614]
[1751505287103,1.15768798,109120.0,109110.0,0.07345614]
[1751505287259,1.15768798,109120.0,109110.0,0.11010925]
[1751505287507,1.16685211,109120.0,109110.0,0.11010925]
[1751505287891,1.15768798,109120.0,109110.0,0.05523324]
[1751505288093,1.1668522,109120.0,109110.0,0.05523324]
[1751505289829,1.76456939,109120.0,109110.0,0.02717035]
[1751505290047,1.59044856,109120.0,109110.0,0.02717035]
[1751505290256,1.59044856,109120.0,109110.0,0.0271682]
[1751505290602,1.77373301,109120.0,109110.0,0.0271682]
[1751505292482,1.80128501,109120.0,109110.0,0.02716489]
[1751505293349,1.61800056,109120.0,109110.0,0.02716489]
[1751505294000,1.80128501,109120.0,109110.0,0.02716489]
[1751505294740,0.60785057,109120.0,109110.0,0.02716489]
[1751505294954,1.22249777,109120.0,109110.0,0.02716489]
[1751505295423,1.22249777,109120.0,109110.0,0.0271478]
[1751505295923,1.21333389,109120.0,109110.0,0.0271478]
[1751505296146,1.22249769,109120.0,109110.0,0.0271478]
[1751505296597,1.23166166,109120.0,109110.0,0.0271478]
[1751505298057,1.24082579,109120.0,109110.0,0.0271478]
[1751505298490,1.24082579,109120.0,109110.0,0.02714045]
[1751505298708,1.5344042,109120.0,109110.0,0.02714045]
[1751505300789,1.59008842,109120.0,109110.0,0.02714045]
[1751505300982,1.59008842,109120.0,109110.0,0.02714012]
[1751505301664,1.76420924,109120.0,109110.0,0.02714012]
[1751505301868,1.75504544,109120.0,109110.0,0.02714012]
[1751505303155,1.76422086,109120.0,109110.0,0.02714012]
[1751505303371,1.57176099,109120.0,109110.0,0.02714012]
[1751505303790,1.25985448,109120.0,109110.0,0.02714012]
[1751505304028,1.25977397,109120.0,109110.0,0.02714012]
[1751505304234,1.26893785,109120.0,109110.0,0.02714012]
[1751505304442,1.2781019,109120.0,109110.0,0.02714012]
[1751505304809,1.03389785,109120.0,109110.0,0.02714012]
[1751505305008,1.2781019,109120.0,109110.0,0.02714012]
[1751505305215,1.2505499,109120.0,109110.0,0.02714012]
[1751505305428,1.25055057,109120.0,109110.0,0.02714012]
[1751505305607,1.73657689,109120.0,109110.0,0.02714012]
[1751505305809,1.74567875,109120.0,109110.0,0.02714012]
[1751505306017,1.73657689,109120.0,109110.0,0.02714012]
[1751505306235,1.7459693,109120.0,109110.0,0.02714012]
[1751505306435,1.72741318,109120.0,109110.0,0.02714012]
[1751505308981,0.62673899,109120.0,109110.0,0.02714012]
[1751505309190,1.23222273,109120.0,109110.0,0.02714012]
[1751505309397,1.54412873,109120.0,109110.0,0.02714012]
[1751505309595,1.54412873,109120.0,109110.0,0.01855997]
[1751505309803,1.25055108,109120.0,109110.0,0.02714072]
[1751505310874,1.42467165,109120.0,109110.0,0.02714072]
[1751505311503,1.72741352,109120.0,109110.0,0.02714072]
[1751505315360,0.04839106,109120.0,109110.0,0.04224072]
[1751505315559,0.04839106,109120.0,109110.0,0.34252021]
[1751505315764,0.53965293,109120.0,109110.0,0.31503199]
[1751505315966,0.53965293,109120.0,109110.0,0.30586718]
[1751505316151,0.53965293,109120.0,109110.0,0.31503199]
[1751505316372,0.00187106,109120.0,109110.0,0.40779207]
[1751505316584,0.00187106,109120.0,109110.0,0.67398712]
[1751505316788,0.00187106,109120.0,109110.0,0.74718258]
[1751505317411,0.00087106,109120.0,109110.0,0.74618258]
[1751505317825,0.00187106,109120.0,109110.0,0.77122443]
[1751505318498,0.00287106,109120.0,109110.0,0.77522443]
[1751505319681,0.00287106,109120.0,109110.0,0.45244071]
[1751505322661,0.00287106,109120.0,109110.0,0.37924525]
[1751505325545,0.00287106,109120.0,109110.0,0.43395875]
[1751505327433,0.00287106,109120.0,109110.0,0.37924525]
[1751505327688,0.00287106,109120.0,109110.0,0.70202897]
[1751505328702,0.00287106,109120.0,109110.0,0.71656982]
[1751505331518,0.00287106,109120.0,109110.0,0.3937861]
[1751505331730,0.00287106,109120.0,109110.0,0.44847693]
[1751505332167,0.00287106,109120.0,109110.0,0.74347693]
[1751505332393,0.00287106,109120.0,109110.0,0.73431246]
[1751505332601,0.00287106,109120.0,109110.0,0.74347701]
[1751505332748,0.00287106,109120.0,109110.0,0.74347642]
[1751505332989,0.00287106,109120.0,109110.0,0.72893557]
[1751505333969,0.00287106,109120.0,109110.0,0.72886774]
[1751505337624,0.00287106,109120.0,109110.0,0.67417691]
[1751505337873,0.00287106,109120.0,109110.0,1.35150148]
[1751505338090,0.0004,109130.0,109120.0,0.19244858]
[1751505338314,0.0005412,109130.0,109120.0,0.37534383]
[1751505338529,0.0005412,109130.0,109120.0,0.39124375]
[1751505338743,0.0005412,109130.0,109120.0,0.40694375]
[1751505339180,0.0005412,109130.0,109120.0,0.59558375]
[1751505339399,0.0025412,109130.0,109120.0,0.60058375]
[1751505339857,0.0025412,109130.0,109120.0,0.58488375]
[1751505340083,0.0025412,109130.0,109120.0,0.56898375]
[1751505340293,0.0025412,109130.0,109120.0,0.56899407]
[1751505343562,0.0025412,109130.0,109120.0,0.51427863]
[1751505344627,0.0025412,109130.0,109120.0,0.58747409]
[1751505345294,0.0025412,109130.0,109120.0,0.188058]
[1751505345528,0.54720245,109130.0,109120.0,0.07693815]
[1751505345753,1.10540484,109130.0,109120.0,0.05869183]
[1751505345986,1.01489726,109130.0,109120.0,0.03068019]
[1751505346173,1.04244426,109130.0,109120.0,0.03068019]
[1751505346417,1.21654921,109130.0,109120.0,0.03068019]
[1751505347326,1.21554921,109130.0,109120.0,0.02868019]
[1751505347973,1.21854921,109130.0,109120.0,0.02968019]
[1751505348375,1.36845048,109130.0,109120.0,0.02968019]
[1751505348582,1.49351124,109130.0,109120.0,0.02968019]
[1751505348811,1.40628752,109130.0,109120.0,0.01257773]
[1751505349203,1.40628752,109130.0,109120.0,0.004]
[1751505349426,1.40628752,109130.0,109120.0,0.01256787]
[1751505349882,1.40528752,109130.0,109120.0,0.00956787]
[1751505350716,1.40528752,109130.0,109120.0,0.02668714]
[1751505350930,1.41442162,109130.0,109120.0,0.02668714]
[1751505351157,1.41542162,109130.0,109120.0,0.02668714]
[1751505351564,1.41442162,109130.0,109120.0,0.02668714]
[1751505351791,1.41542162,109130.0,109120.0,0.02668714]
[1751505351976,1.40628752,109130.0,109120.0,0.02668714]
[1751505355085,1.72907124,109130.0,109120.0,0.02668714]
[1751505355294,1.72907124,109130.0,109120.0,0.02667316]
[1751505355496,1.40628752,109130.0,109120.0,0.02667316]
[1751505355924,1.40628752,109130.0,109120.0,0.00956787]
[1751505356618,1.72907124,109130.0,109120.0,0.00956787]
[1751505358271,1.72907124,109130.0,109120.0,0.001]
[1751505358482,1.71371124,109130.0,109120.0,0.00954909]
[1751505358687,1.79952997,109130.0,109120.0,0.00954909]
[1751505359097,1.47674625,109130.0,109120.0,0.00954909]
[1751505360556,1.28431521,109130.0,109120.0,0.00954909]
[1751505360791,1.30264096,109130.0,109120.0,0.02664257]
[1751505361020,1.30264096,109130.0,109120.0,0.02664014]
[1751505361021,0.6238882,109130.0,109120.0,0.02664014]
[1751505361247,0.59424492,109130.0,109120.0,0.09962951]
[1751505361469,0.78312492,109130.0,109120.0,0.10002565]
[1751505361686,0.78312492,109130.0,109120.0,0.0914828]
[1751505363042,0.54752492,109130.0,109120.0,0.0914828]
[1751505363245,0.78312492,109130.0,109120.0,0.3003313]
[1751505363418,0.78312492,109130.0,109120.0,0.40849138]
[1751505363642,0.78324492,109130.0,109120.0,0.33550201]
[1751505364258,0.54752492,109130.0,109120.0,0.34466598]
[1751505364469,0.78324492,109130.0,109120.0,0.33550201]
[1751505364671,0.78320492,109130.0,109120.0,0.33550201]
[1751505365024,0.78320492,109130.0,109120.0,0.33550209]
[1751505365525,0.78320492,109130.0,109120.0,0.34466614]
[1751505366140,0.2247412,109130.0,109120.0,0.39041948]
[1751505366363,0.4603412,109130.0,109120.0,0.39041948]
[1751505366576,0.4603412,109130.0,109120.0,0.39958336]
[1751505366805,0.78312492,109130.0,109120.0,0.38125551]
[1751505367008,0.78312492,109130.0,109120.0,0.17964288]
[1751505367153,0.73640492,109130.0,109120.0,0.19797115]
[1751505367394,0.73640492,109130.0,109120.0,0.39041973]
[1751505367579,0.73340492,109130.0,109120.0,0.1878071]
[1751505367777,0.73340492,109130.0,109120.0,0.17864288]
[1751505367982,0.73240492,109130.0,109120.0,0.1888071]
[1751505368152,0.73340492,109130.0,109120.0,0.1754071]
[1751505368352,0.54452492,109130.0,109120.0,0.16624288]
[1751505368558,0.73340492,109130.0,109120.0,0.34952733]
[1751505368784,0.73340492,109130.0,109120.0,0.35869146]
[1751505369396,0.73336492,109130.0,109120.0,0.35869146]
[1751505369598,0.73336492,109130.0,109120.0,0.16624288]
[1751505370178,0.73336492,109130.0,109120.0,0.14984288]
[1751505374240,0.51316492,109130.0,109120.0,0.13274945]
[1751505383875,0.51316492,109130.0,109120.0,0.14985536]
[1751505386665,0.51316492,109130.0,109120.0,0.20469105]
[1751505389474,0.51316492,109130.0,109120.0,0.16810168]
[1751505390912,0.51316492,109130.0,109120.0,0.18646168]
[1751505391199,0.51316492,109130.0,109120.0,0.16810168]
[1751505391812,0.1903812,109130.0,109120.0,0.16810168]
[1751505392024,0.51316492,109130.0,109120.0,0.16814652]
[1751505392944,0.54396492,109130.0,109120.0,0.07538644]
[1751505395947,0.55312771,109130.0,109120.0,0.07538644]
[1751505396156,0.54396492,109130.0,109120.0,0.11198394]
[1751505396570,0.55312754,109130.0,109120.0,0.11198394]
[1751505397719,0.56229033,109130.0,109120.0,0.11198394]
[1751505397953,0.58061633,109130.0,109120.0,0.05714825]
[1751505398162,0.58977971,109130.0,109120.0,0.02913221]
[1751505398413,0.61732671,109130.0,109120.0,0.02913221]
[1751505398623,0.80059437,109130.0,109120.0,0.02913221]
[1751505398765,0.61732671,109130.0,109120.0,0.02913221]
[1751505399182,0.61732662,109130.0,109120.0,0.02913221]
[1751505399383,0.60816316,109130.0,109120.0,0.02913221]
[1751505400673,0.60816316,109130.0,109120.0,0.02913067]
[1751505401094,0.61732629,109130.0,109120.0,0.02912381]
[1751505401708,0.61732696,109130.0,109120.0,0.02912381]
[1751505401881,0.60816367,109130.0,109120.0,0.02912381]
[1751505403139,0.61732696,109130.0,109120.0,0.02912381]
[1751505403350,0.28537995,109130.0,109120.0,0.02912381]
[1751505403558,0.60816367,109130.0,109120.0,0.02912381]
[1751505405807,0.61732696,109130.0,109120.0,0.02912381]
[1751505406008,0.60816367,109130.0,109120.0,0.02912381]
[1751505406340,0.61732688,109130.0,109120.0,0.02912381]
[1751505408959,0.60816409,109130.0,109120.0,0.02912381]
[1751505413362,0.60816409,109130.0,109120.0,0.02912106]
[1751505413772,0.63599775,109130.0,109120.0,0.02912106]
[1751505414205,0.64516079,109130.0,109120.0,0.02912106]
[1751505415895,0.63599775,109130.0,109120.0,0.02912106]
[1751505417707,0.63599741,109130.0,109120.0,0.02912106]
[1751505418129,0.64516045,109130.0,109120.0,0.02912106]
[1751505418876,0.64516037,109130.0,109120.0,0.02912106]
[1751505419301,0.64516037,109130.0,109120.0,0.0291249]
[1751505419734,0.92789135,109130.0,109120.0,0.0291249]
[1751505420651,0.91872839,109130.0,109120.0,0.0291249]
[1751505422190,0.67456552,109130.0,109120.0,0.0291249]
[1751505422409,0.30401082,109130.0,109120.0,0.0291249]
[1751505422634,0.91868831,109130.0,109120.0,0.0291249]
[1751505422860,0.90952552,109130.0,109120.0,0.0291249]
[1751505423338,0.91868823,109130.0,109120.0,0.0291249]
[1751505423797,0.9278511,109130.0,109120.0,0.0291249]
[1751505424234,0.9278511,109130.0,109120.0,0.02912805]
[1751505426047,0.91868823,109130.0,109120.0,0.02912805]
[1751505426277,0.91868823,109130.0,109120.0,0.06572555]
[1751505426495,0.92785102,109130.0,109120.0,0.06572555]
[1751505429049,0.36264555,109130.0,109120.0,0.06572555]
[1751505429262,0.53925855,109130.0,109120.0,0.06572555]
[1751505432126,0.49273855,109130.0,109120.0,0.09572555]
[1751505432384,0.30429855,109130.0,109120.0,0.14198094]
[1751505432605,0.49273855,109130.0,109120.0,0.14198094]
[1751505433040,0.0015412,109130.0,109120.0,0.28866935]
[1751505433260,0.0015412,109130.0,109120.0,0.11454912]
[1751505433261,0.53925855,109130.0,109120.0,0.11454912]
[1751505433473,0.53925855,109130.0,109120.0,0.28984841]
[1751505433690,0.0015412,109130.0,109120.0,0.3069986]
[1751505433906,0.1899812,109130.0,109120.0,0.42725016]
[1751505435008,0.1899812,109130.0,109120.0,0.41808653]
[1751505435864,0.1899812,109130.0,109120.0,0.41808661]
[1751505436104,0.1899812,109130.0,109120.0,0.42725041]
[1751505436539,0.30429855,109130.0,109120.0,0.41808661]
[1751505436753,0.49269855,109130.0,109120.0,0.41808661]
[1751505436987,0.1899412,109130.0,109120.0,0.41808661]
[1751505437226,0.49269855,109130.0,109120.0,0.41808661]
[1751505437448,0.49269855,109130.0,109120.0,0.4180867]
[1751505437670,0.49269855,109130.0,109120.0,0.39975868]
[1751505438099,0.49269855,109130.0,109120.0,0.40892273]
[1751505438345,0.49269855,109130.0,109120.0,0.4180867]
[1751505438564,0.49269855,109130.0,109120.0,0.40892273]
[1751505439481,0.49269855,109130.0,109120.0,0.4180867]
[1751505440152,0.49269855,109130.0,109120.0,0.40892273]
[1751505441012,0.1899412,109130.0,109120.0,0.40892273]
[1751505441246,0.1899412,109130.0,109120.0,0.73000751]
[1751505441690,0.0015412,109130.0,109120.0,0.67517182]
[1751505443226,0.0015412,109130.0,109120.0,0.37241447]
[1751505443442,0.0015412,109130.0,109120.0,0.42716326]
[1751505445190,0.0015412,109130.0,109120.0,0.42716334]
[1751505445605,0.0015412,109130.0,109120.0,0.41001264]
[1751505446808,0.0015412,109130.0,109120.0,0.41006639]
[1751505447020,0.30429855,109130.0,109120.0,0.40090276]
[1751505447243,0.30429855,109130.0,109120.0,0.41006656]
[1751505447465,0.30429855,109130.0,109120.0,0.41922977]
[1751505448728,0.0015412,109130.0,109120.0,0.41006614]
[1751505449351,0.0015412,109130.0,109120.0,0.41922977]
[1751505449560,0.0015412,109130.0,109120.0,0.39173863]
[1751505449773,0.0015412,109130.0,109120.0,0.3734107]
[1751505449993,0.30429855,109130.0,109120.0,0.16929047]
[1751505450209,0.30429855,109130.0,109120.0,0.1784546]
[1751505450848,0.30429855,109130.0,109120.0,0.18761865]
[1751505451621,0.30429855,109130.0,109120.0,0.3709031]
[1751505452032,0.30429855,109130.0,109120.0,0.36173905]
[1751505452242,0.30429855,109130.0,109120.0,0.3709031]
[1751505452455,0.30429855,109130.0,109120.0,0.38006707]
[1751505452668,0.30429855,109130.0,109120.0,0.3709031]
[1751505452880,0.0015412,109130.0,109120.0,0.38800193]
[1751505453080,0.0015412,109130.0,109120.0,0.3971659]
[1751505453257,0.0015412,109130.0,109120.0,0.38800193]
[1751505454154,0.0015412,109130.0,109120.0,0.3971659]
[1751505454856,0.0015412,109130.0,109120.0,0.1863893]
[1751505455069,0.0015412,109130.0,109120.0,0.19555343]
[1751505455541,0.0015412,109130.0,109120.0,0.40632944]
[1751505455769,0.0015412,109130.0,109120.0,0.40632885]
[1751505455984,0.0015412,109130.0,109120.0,0.39716522]
[1751505456184,0.0015412,109130.0,109120.0,0.40632885]
[1751505456406,0.0015412,109130.0,109120.0,0.35158006]
[1751505456614,0.30429855,109130.0,109120.0,0.35158006]
[1751505457493,0.30429855,109130.0,109120.0,0.33325289]
[1751505457699,0.30429855,109130.0,109120.0,0.34241669]
[1751505457911,0.30429855,109130.0,109120.0,0.3515804]
[1751505458138,0.30429855,109130.0,109120.0,0.3515799]
[1751505459221,0.30429855,109130.0,109120.0,0.42477536]
[1751505459649,0.30429855,109130.0,109120.0,0.40644802]
[1751505459853,0.30429855,109130.0,109120.0,0.41561165]
[1751505460073,0.30429855,109130.0,109120.0,0.40646403]
[1751505460291,0.30429855,109130.0,109120.0,0.42479137]
[1751505460746,0.0015412,109130.0,109120.0,0.42479137]
[1751505460966,0.30429855,109130.0,109120.0,0.42479137]
[1751505462020,0.30429855,109130.0,109120.0,0.41562774]
[1751505462197,0.30429855,109130.0,109120.0,0.42479137]
[1751505463005,0.30429855,109130.0,109120.0,0.40646403]
[1751505463202,0.30429855,109130.0,109120.0,0.40646411]
[1751505463486,0.30429855,109130.0,109120.0,0.41562782]
[1751505463686,0.0015412,109130.0,109120.0,0.42479145]
[1751505466836,0.0015412,109130.0,109120.0,0.41562791]
[1751505467036,0.30429855,109130.0,109120.0,0.41562791]
[1751505467236,0.0015412,109130.0,109120.0,0.4247912]
[1751505467439,0.30429855,109130.0,109120.0,0.4247912]
[1751505468133,0.0015412,109130.0,109120.0,0.4247912]
[1751505468344,0.0015412,109130.0,109120.0,0.72754855]
[1751505469639,0.0015412,109130.0,109120.0,0.75794855]
[1751505470565,0.0015412,109130.0,109120.0,0.72754855]
[1751505474005,0.0015412,109130.0,109120.0,0.94788855]
[1751505477384,0.0005412,109130.0,109120.0,0.94588855]
[1751505477605,0.0015412,109130.0,109120.0,0.94888855]
[1751505478272,0.0015412,109130.0,109120.0,0.94788855]
[1751505478704,0.0015412,109130.0,109120.0,0.94988855]
[1751505479767,0.0015412,109130.0,109120.0,1.31718675]
[1751505479978,0.0015412,109130.0,109120.0,1.63024436]
[1751505480177,0.0015412,109130.0,109120.0,1.65778236]
[1751505482077,0.0015412,109130.0,109120.0,1.65578236]
[1751505482289,0.0015412,109130.0,109120.0,1.56452929]
[1751505482498,0.0025412,109130.0,109120.0,1.56852929]
[1751505483388,0.0025412,109130.0,109120.0,1.56854145]
[1751505484275,0.0015412,109130.0,109120.0,1.56554145]
[1751505485785,0.0015412,109130.0,109120.0,1.2627841]
[1751505486026,0.0015412,109130.0,109120.0,1.1806841]
[1751505486237,0.0015412,109130.0,109120.0,1.25675628]
[1751505486449,0.0015412,109130.0,109120.0,1.25675251]
[1751505486654,0.0015412,109130.0,109120.0,1.23962928]
[1751505489517,0.0015412,109130.0,109120.0,1.27072928]
[1751505489928,0.0015412,109130.0,109120.0,1.25512928]
[1751505490788,0.0015412,109130.0,109120.0,1.23962928]
[1751505491000,0.0015412,109130.0,109120.0,1.21209128]
[1751505492514,0.0015412,109130.0,109120.0,1.51484863]
[1751505495662,0.0015412,109130.0,109120.0,1.54704863]
[1751505496905,0.0015412,109130.0,109120.0,1.53054863]
[1751505498388,0.0015412,109130.0,109120.0,1.45747645]
[1751505499775,0.0015412,109130.0,109120.0,1.44177645]
[1751505505160,0.0333412,109130.0,109120.0,0.62431727]
[1751505505369,0.0333412,109130.0,109120.0,1.12431825]
[1751505505586,0.0333412,109130.0,109120.0,1.17909194]
[1751505505789,0.0333412,109130.0,109120.0,1.18825565]
[1751505506002,0.0333412,109130.0,109120.0,1.19745194]
[1751505506220,0.0333412,109130.0,109120.0,1.18825565]
[1751505506751,0.0333412,109130.0,109120.0,1.19741928]
[1751505509692,0.0333412,109130.0,109120.0,0.90241928]
[1751505512030,0.0333412,109130.0,109120.0,0.39325459]
[1751505512255,0.0333412,109130.0,109120.0,0.5904583]
[1751505513356,0.0333412,109130.0,109120.0,0.59962193]
[1751505514268,0.33609855,109130.0,109120.0,0.18247815]
[1751505514705,0.33609855,109130.0,109120.0,0.19164237]
[1751505514922,0.33609855,109130.0,109120.0,0.38409087]
[1751505515401,0.33609855,109130.0,109120.0,0.38409095]
[1751505515624,0.33609855,109130.0,109120.0,0.37492682]
[1751505515840,0.33609855,109130.0,109120.0,0.18247815]
[1751505517687,0.33609855,109130.0,109120.0,0.19164237]
[1751505519171,0.33609855,109130.0,109120.0,0.18247815]
[1751505519385,0.33609855,109130.0,109120.0,0.19164237]
[1751505520485,0.33609855,109130.0,109120.0,0.18247815]
[1751505520904,0.33609855,109130.0,109120.0,0.19164237]
[1751505521062,0.33609855,109130.0,109120.0,0.2008065]
[1751505521829,0.33609855,109130.0,109120.0,0.19164237]
[1751505522373,0.33609855,109130.0,109120.0,0.2008065]
[1751505522578,0.33609855,109130.0,109120.0,0.19164237]
[1751505523479,0.33609855,109130.0,109120.0,0.18247815]
[1751505524813,0.33609855,109130.0,109120.0,0.07142857]
[1751505526748,0.33509855,109130.0,109120.0,0.06742857]
[1751505526956,0.33509855,109130.0,109120.0,0.06442857]
[1751505527075,0.33609855,109130.0,109120.0,0.06442857]
[1751505532244,0.33609855,109130.0,109120.0,0.05521119]
[1751505534468,0.0333412,109130.0,109120.0,0.06437532]
[1751505534716,0.0015412,109130.0,109120.0,0.06462602]
[1751505534901,0.0321412,109130.0,109120.0,0.65259203]
[1751505535038,0.0015412,109130.0,109120.0,0.661756]
[1751505535244,0.0015412,109130.0,109120.0,0.66175608]
[1751505535470,0.0015412,109130.0,109120.0,0.67092005]
[1751505535883,0.0015412,109130.0,109120.0,0.61610886]
[1751505536145,0.0015412,109130.0,109120.0,0.10257491]
[1751505536324,0.0331412,109130.0,109120.0,0.41449648]
[1751505536528,0.0331412,109130.0,109120.0,0.42366061]
[1751505536795,0.0331412,109130.0,109120.0,0.41449648]
[1751505537184,0.0331412,109130.0,109120.0,0.12090326]
[1751505537532,0.0015412,109130.0,109120.0,0.13006731]
[1751505537740,0.0015412,109130.0,109120.0,0.62527308]
[1751505537964,0.0015412,109130.0,109120.0,0.62527299]
[1751505538173,0.0015412,109130.0,109120.0,0.65013679]
[1751505538413,0.0015412,109130.0,109120.0,0.62527308]
[1751505539345,0.0015412,109130.0,109120.0,0.32251573]
[1751505539546,0.0015412,109130.0,109120.0,0.33963879]
[1751505539972,0.0015412,109130.0,109120.0,0.32131077]
[1751505540166,0.0015412,109130.0,109120.0,0.33047486]
[1751505540592,0.0015412,109130.0,109120.0,0.31335176]
[1751505540785,0.0015412,109130.0,109120.0,0.32251573]
[1751505541108,0.0015412,109130.0,109120.0,0.33167953]
[1751505541325,0.0015412,109130.0,109120.0,0.33167961]
[1751505541516,0.0015412,109130.0,109120.0,0.32251573]
[1751505541693,0.0015412,109130.0,109120.0,0.33167961]
[1751505542108,0.0015412,109130.0,109120.0,0.32251573]
[1751505543577,0.0015412,109130.0,109120.0,0.33167961]
[1751505544059,0.0015412,109130.0,109120.0,0.62527308]
[1751505544266,0.0015412,109130.0,109120.0,0.63443696]
[1751505544649,0.0015412,109130.0,109120.0,0.33167961]
[1751505544984,0.0015412,109130.0,109120.0,0.33167919]
[1751505545193,0.0015412,109130.0,109120.0,0.32251539]
[1751505545694,0.0015412,109130.0,109120.0,0.33167919]
[1751505546155,0.0015412,109130.0,109120.0,0.31335151]
[1751505546360,0.0015412,109130.0,109120.0,0.30418754]
[1751505546553,0.0015412,109130.0,109120.0,0.31335151]
[1751505547167,0.0015412,109130.0,109120.0,0.33048386]
[1751505547388,0.0015412,109130.0,109120.0,0.32131989]
[1751505547600,0.0015412,109130.0,109120.0,0.33048386]
[1751505547716,0.0015412,109130.0,109120.0,0.32131989]
[1751505548157,0.0015412,109130.0,109120.0,0.39441738]
[1751505548353,0.0015412,109130.0,109120.0,0.69717473]
[1751505548565,0.0015412,109130.0,109120.0,0.70633853]
[1751505549176,0.0015412,109130.0,109120.0,0.70633861]
[1751505549577,0.0015412,109130.0,109120.0,0.40358126]
[1751505550073,0.0015412,109130.0,109120.0,0.41274506]
[1751505550459,0.0015412,109130.0,109120.0,0.75506604]
[1751505550605,0.0015412,109130.0,109120.0,1.05782339]
[1751505550804,0.0015412,109130.0,109120.0,1.24562339]
[1751505551241,0.0015412,109130.0,109120.0,0.94286604]
[1751505551650,0.0015412,109130.0,109120.0,1.26016424]
[1751505551865,0.0005412,109130.0,109120.0,1.61843861]
[1751505552068,0.0005412,109130.0,109120.0,1.64697561]
[1751505552916,0.0005412,109130.0,109120.0,1.64897561]
[1751505553295,0.0004,109140.0,109130.0,0.24345678]
[1751505553501,0.0004,109140.0,109130.0,0.72914826]
[1751505554127,0.0004,109140.0,109130.0,0.42639091]
[1751505554528,0.0004,109140.0,109130.0,0.72914826]
[1751505554730,0.0004,109140.0,109130.0,0.73014826]
[1751505555240,0.0004,109140.0,109130.0,0.73214826]
[1751505556292,0.0004,109140.0,109130.0,0.75968526]
[1751505558005,0.04184,109150.0,109140.0,0.20157536]
[1751505558212,0.07244,109150.0,109140.0,0.36619349]
[1751505558862,0.07244,109150.0,109140.0,0.67811304]
[1751505559063,0.07244,109150.0,109140.0,0.67808161]
[1751505559267,0.07244,109150.0,109140.0,0.6780817]
[1751505559565,0.0306,109150.0,109140.0,0.3844863]
[1751505559767,0.0306,109150.0,109140.0,0.41209526]
[1751505559963,0.0306,109150.0,109140.0,0.41209534]
[1751505560195,0.0316,109150.0,109140.0,0.41209534]
[1751505560555,0.0316,109150.0,109140.0,0.40293339]
[1751505561233,0.0316,109150.0,109140.0,0.41209551]
[1751505561868,0.0316,109150.0,109140.0,0.40293339]
[1751505562496,0.001,109150.0,109140.0,0.71485286]
[1751505562716,0.001,109150.0,109140.0,1.53132646]
[1751505562922,0.001,109150.0,109140.0,1.94144101]
[1751505563585,0.0004,109160.0,109150.0,0.21071817]
[1751505563808,0.0004,109160.0,109150.0,1.48520182]
[1751505564027,0.0004,109160.0,109150.0,1.50369547]
[1751505564250,0.0004,109160.0,109150.0,1.20093812]
[1751505564467,0.0004,109160.0,109150.0,1.17846612]
[1751505564679,0.0004,109160.0,109150.0,1.13709426]
[1751505564892,0.0004,109160.0,109150.0,1.08709426]
[1751505565155,0.0014,109160.0,109150.0,1.43709426]
[1751505565553,0.0014,109160.0,109150.0,1.50985279]
[1751505565728,0.0014,109160.0,109150.0,1.52821279]
[1751505565886,0.0014,109160.0,109150.0,1.5499907]
[1751505566092,0.0014,109160.0,109150.0,1.4999907]
[1751505566291,0.0014,109160.0,109150.0,1.5479907]
[1751505567168,0.0024,109160.0,109150.0,1.5519907]
[1751505568464,0.0024,109160.0,109150.0,1.5019907]
[1751505568665,0.0024,109160.0,109150.0,1.5519907]
[1751505568867,0.0024,109160.0,109150.0,1.5019678]
[1751505569085,0.0024,109160.0,109150.0,1.5519678]
[1751505570288,0.0024,109160.0,109150.0,1.5019678]
[1751505570490,0.0024,109160.0,109150.0,1.5519678]
[1751505570963,0.0024,109160.0,109150.0,1.5019678]
[1751505571103,0.0024,109160.0,109150.0,1.5519678]
[1751505571500,0.0024,109160.0,109150.0,1.5019678]
[1751505571754,0.0024,109160.0,109150.0,1.5519678]
[1751505571955,0.0024,109160.0,109150.0,1.5019678]
[1751505572157,0.0024,109160.0,109150.0,1.14773254]
[1751505572361,0.0024,109160.0,109150.0,1.33533254]
[1751505572495,0.0024,109160.0,109150.0,1.6739678]
[1751505573466,0.0024,109160.0,109150.0,1.6578678]
[1751505573664,0.0024,109160.0,109150.0,1.4202678]
[1751505573844,0.0024,109160.0,109150.0,1.28533254]
[1751505574091,0.0339,109160.0,109150.0,1.28533254]
[1751505574297,0.0339,109160.0,109150.0,1.08857143]
[1751505574553,0.35643526,109160.0,109150.0,0.87247352]
[1751505574770,0.35643526,109160.0,109150.0,0.21920413]
[1751505574989,0.35643526,109160.0,109150.0,0.25554348]